[Event "17th Asian Continental-ch Women 2018"]
[Site "Makati City"]
[Date "2018.12.14"]
[Round "5.12"]
[White "Gu, Tianlu"]
[Black "Mendoza, Shania Mae"]
[Result "1-0"]
[ECO "A00"]
[WhiteElo "2231"]
[BlackElo "2165"]
[PlyCount "157"]
[EventDate "2018.12.07"]
[EventType "swiss"]
[EventCountry "PHI"]
[TimeControl "40/5400+30:1800+30"]

1. e4 c6 2. Nc3 d5 3. Nf3 Bg4 4. h3 Bxf3 5. Qxf3 Nf6 6. d3 e6 7. Bd2 Bb4 8. O-O-O Nbd7 9. g4 d4 10. Ne2 Bxd2+ 11. Rxd2 Qa5 12. a3 h5 13. Nxd4 Ne5 14. Qg2 hxg4 15. hxg4 O-O-O 16. Rxh8 Rxh8 17. Nb3 Qd8 18. Qg3 Rh1 19. Rd1 Ng6 20. Nd2 Qc7 21. Qxc7+ Kxc7 22. Be2 Rh2 23. Rf1 Nf4 24. Bd1 Rg2 25. Bf3 Rh2 26. e5 Nd7 27. d4 c5 28. dxc5 Nxe5 29. Bd1 Kc6 30. Nf3 Nxf3 31. Bxf3+ Kxc5 32. Bxb7 a5 33. Kd2 g5 34. b3 f6 35. c3 Rh4 36. Rg1 Rh2 37. Ke3 Rh3+ 38. Rg3 Rh7 39. Be4 Rh8 40. Bd3 Rd8 41. b4+ Kb6 42. Kd2 Ra8 43. Be4 Ra7 44. c4 axb4 45. axb4 Ra2+ 46. Bc2 Ra8 47. Rg1 Rc8 48. Bd3 Rd8 49. Rg3 Rd4 50. Kc3 e5 51. Re3 Kc7 52. Bc2 Rd8 53. Re1 Kb6 54. Be4 Rd4 55. f3 Rd8 56. Rh1 Ne2+ 57. Kc2 Nd4+ 58. Kb2 Rc8 59. Bd5 Rf8 60. Rh7 Ka6 61. Ka3 Rb8 62. Ka4 Nc2 63. b5+ Kb6 64. Be4 Rc8 65. Bxc2 Rxc4+ 66. Kb3 Rd4 67. Rf7 Rf4 68. Be4 Kxb5 69. Rd7 f5 70. Rd5+ Kb6 71. Bxf5 Rxf3+ 72. Kc4 Re3 73. Rd6+ Kc7 74. Re6 Re1 75. Kd5 e4 76. Rxe4 Ra1 77. Ke6 Ra6+ 78. Kf7 Rd6 79. Re7+ 1-0

[Event "17th Asian Continental-ch Women 2018"]
[Site "Makati City"]
[Date "2018.12.14"]
[Round "5.13"]
[White "Nakhbayeva, Guliskhan"]
[Black "Galas, Bernadette"]
[Result "1-0"]
[ECO "A00"]
[WhiteElo "2371"]
[BlackElo "2100"]
[PlyCount "71"]
[EventDate "2018.12.07"]
[EventType "swiss"]
[EventCountry "PHI"]
[TimeControl "40/5400+30:1800+30"]

1. d4 d5 2. c4 dxc4 3. Nf3 Nf6 4. e3 e6 5. Bxc4 c5 6. O-O Be7 7. b3 O-O 8. Bb2 Nc6 9. Nbd2 b6 10. dxc5 bxc5 11. Qe2 Bb7 12. Rfd1 Qb6 13. Rac1 Rfd8 14. h3 Rac8 15. Bd3 Nb4 16. Bb1 Qa6 17. Nc4 Nxa2 18. Rxd8+ Rxd8 19. Rd1 Rxd1+ 20. Qxd1 Nb4 21. Ng5 Qc6 22. e4 Nd7 23. Qh5 Bxg5 24. Qxg5 f6 25. Qg3 e5 26. f4 exf4 27. Qxf4 Ba8 28. Nd6 a5 29. Nf5 Kf8 30. Qh4 h6 31. Qg4 g5 32. Qh5 Qa6 33. Qxh6+ Ke8 34. Qh8+ Nf8 35. Qg7 Qe6 36. Bxf6 1-0

[Event "17th Asian Continental-ch Women 2018"]
[Site "Makati City"]
[Date "2018.12.14"]
[Round "5.14"]
[White "Mejia, Cherry Ann"]
[Black "Secopito, Catherine"]
[Result "0-1"]
[ECO "A00"]
[WhiteElo "1980"]
[BlackElo "2145"]
[PlyCount "90"]
[EventDate "2018.12.07"]
[EventType "swiss"]
[EventCountry "PHI"]
[TimeControl "40/5400+30:1800+30"]

1. e4 d5 2. exd5 Qxd5 3. Nc3 Qd6 4. d4 Nf6 5. Nf3 g6 6. Ne5 Bg7 7. f4 O-O 8. Bc4 a6 9. a4 Nc6 10. Be3 Qb4 11. Bb3 Ne4 12. Qd3 Bf5 13. g4 Nxe5 14. fxe5 Nf2 15. Qe2 Nxg4 16. Bg1 c5 17. Rd1 cxd4 18. Rxd4 Qa5 19. Rd5 Qc7 20. Rc5 Qd8 21. Rd5 Qb8 22. h3 Nh6 23. Be3 Be6 24. Bxh6 Bxh6 25. Rd4 Bxb3 26. cxb3 Bg7 27. Re4 Qc7 28. h4 h5 29. Rf1 Rad8 30. Qc4 Qd7 31. Qe2 Bh6 32. Rf3 Qc7 33. Rd3 Rxd3 34. Qxd3 Rd8 35. Qc4 Qb6 36. Kf1 Rd2 37. Re2 Rd4 38. Qc8+ Kg7 39. Rf2 Qxb3 40. Ne2 Qd1+ 41. Kg2 Rg4+ 42. Ng3 Bf4 43. Rxf4 Rxf4 44. Qxb7 Qd2+ 45. Kh3 Rxh4+ 0-1

[Event "17th Asian Continental-ch Women 2018"]
[Site "Makati City"]
[Date "2018.12.14"]
[Round "5.15"]
[White "Fronda, Jan Jodilyn"]
[Black "Bernales, Christy Lamiel"]
[Result "1-0"]
[ECO "A00"]
[WhiteElo "2139"]
[BlackElo "1996"]
[PlyCount "111"]
[EventDate "2018.12.07"]
[EventType "swiss"]
[EventCountry "PHI"]
[TimeControl "40/5400+30:1800+30"]

1. e4 e6 2. d4 d5 3. exd5 exd5 4. c4 Nf6 5. Nc3 Be7 6. Nf3 O-O 7. Bd3 h6 8. O-O Be6 9. cxd5 Nxd5 10. Re1 Nc6 11. Be3 Bf6 12. Rc1 a6 13. Bb1 Nce7 14. Nxd5 Bxd5 15. Qc2 Ng6 16. Qxc7 Bxf3 17. gxf3 Bxd4 18. Bxg6 Bxe3 19. Bxf7+ Rxf7 20. Qxd8+ Rxd8 21. Rxe3 Rd2 22. Rb3 Re7 23. Re3 Rxe3 24. fxe3 Rxb2 25. a4 Kf7 26. a5 Kf6 27. h4 Rb4 28. Rc7 Rb5 29. Kf2 Rxa5 30. Rxb7 Ra1 31. h5 a5 32. Kg3 a4 33. Kf4 Rh1 34. Rb6+ Kf7 35. Ra6 Rxh5 36. e4 Rb5 37. Rxa4 Kf6 38. Ra6+ Kf7 39. Kg4 Rg5+ 40. Kf4 Rb5 41. Rc6 Ra5 42. Rb6 Rc5 43. e5 Rc7 44. Kf5 Ra7 45. f4 Rc7 46. e6+ Ke7 47. Kg6 Rc4 48. Rb7+ Ke8 49. Rf7 Re4 50. Kf5 Ra4 51. Rxg7 h5 52. Rh7 Kf8 53. Kg5 Re4 54. f5 Re1 55. Kf6 Kg8 56. Rxh5 1-0

[Event "17th Asian Continental-ch Women 2018"]
[Site "Makati City"]
[Date "2018.12.14"]
[Round "5.16"]
[White "Nithyalakshmi, Sivanesan"]
[Black "Zhang, Xiao"]
[Result "1/2-1/2"]
[ECO "A00"]
[WhiteElo "1942"]
[BlackElo "2017"]
[PlyCount "117"]
[EventDate "2018.12.07"]
[EventType "swiss"]
[EventCountry "PHI"]
[TimeControl "40/5400+30:1800+30"]

1. Nf3 d5 2. g3 c6 3. Bg2 Bf5 4. O-O Nf6 5. c4 e6 6. b3 Nbd7 7. Bb2 Bd6 8. d3 Qe7 9. Nbd2 Ba3 10. Qc1 Bxb2 11. Qxb2 O-O 12. b4 e5 13. Nh4 Bg4 14. Rfe1 e4 15. f3 e3 16. fxg4 exd2 17. Qxd2 dxc4 18. Nf5 Qe6 19. dxc4 Ne5 20. Qg5 g6 21. c5 Nfxg4 22. Nd6 a5 23. b5 Rab8 24. b6 f5 25. Qd2 Nd7 26. e4 Qe5 27. Rac1 f4 28. Qc3 Qh5 29. h3 Nge5 30. gxf4 Rxf4 31. Rf1 g5 32. Qg3 Rbf8 33. Nf5 Rxf1+ 34. Rxf1 h6 35. Nd6 Rxf1+ 36. Bxf1 Nf3+ 37. Kf2 Nd2 38. Qc3 Qh4+ 39. Ke2 Nxf1 40. Kxf1 Qf4+ 41. Ke1 Ne5 42. Nxb7 Qxe4+ 43. Kd2 Qd5+ 44. Kc2 Qe4+ 45. Kb2 Nc4+ 46. Kc1 Qf4+ 47. Kc2 Ne3+ 48. Kd3 Nd5 49. Qc4 Qf3+ 50. Kc2 Kf8 51. Kb2 a4 52. Qxa4 Qc3+ 53. Kb1 Qd2 54. Qc2 Qb4+ 55. Qb3 Qe1+ 56. Kb2 Qe2+ 57. Kb1 Qd2 58. Qc2 Qb4+ 59. Qb3 1/2-1/2

[Event "17th Asian Continental-ch Women 2018"]
[Site "Makati City"]
[Date "2018.12.14"]
[Round "5.17"]
[White "Mordido, Kylen Joy"]
[Black "Karenza, Dita"]
[Result "0-1"]
[ECO "A00"]
[WhiteElo "2045"]
[BlackElo "1944"]
[PlyCount "62"]
[EventDate "2018.12.07"]
[EventType "swiss"]
[EventCountry "PHI"]
[TimeControl "40/5400+30:1800+30"]

1. c4 e6 2. Nf3 d5 3. d4 Nf6 4. g3 dxc4 5. Qa4+ Nbd7 6. Bg2 a6 7. Qxc4 b5 8. Qc2 Bb7 9. O-O c5 10. Rd1 Rc8 11. Qd2 cxd4 12. Nxd4 Bxg2 13. Kxg2 Bc5 14. b3 Qb6 15. Bb2 O-O 16. f3 Rfd8 17. b4 Be7 18. Nb3 e5 19. Rc1 Rxc1 20. Nxc1 Nb8 21. Nd3 Nc6 22. a3 Nd5 23. Nc3 Ne3+ 24. Kh1 Nc4 25. Qc1 Nd4 26. Ra2 Nxf3 27. Ba1 Ng5 28. h4 Ne3 29. Ne1 Qc6+ 30. Kg1 Nh3+ 31. Kh2 Ng4+ 0-1

[Event "17th Asian Continental-ch Women 2018"]
[Site "Makati City"]
[Date "2018.12.14"]
[Round "5.18"]
[White "Doan, Thi Van Anh"]
[Black "Anisa, Aay Aisyah"]
[Result "0-1"]
[ECO "A00"]
[WhiteElo "1950"]
[BlackElo "1985"]
[PlyCount "108"]
[EventDate "2018.12.07"]
[EventType "swiss"]
[EventCountry "PHI"]
[TimeControl "40/5400+30:1800+30"]

1. d4 Nf6 2. c4 e6 3. Nc3 Bb4 4. Qc2 O-O 5. e4 d5 6. cxd5 exd5 7. e5 Ne4 8. Bd3 c5 9. dxc5 Nd7 10. Nf3 Ndxc5 11. O-O Bxc3 12. bxc3 Nxd3 13. Qxd3 Be6 14. Be3 Qa5 15. Rfc1 Rac8 16. Bd4 h6 17. Nd2 Nxd2 18. Qxd2 Rc4 19. f4 Bf5 20. h3 b5 21. g4 Be4 22. f5 b4 23. cxb4 Qa3 24. Kh2 Rxb4 25. f6 Rfb8 26. Bc5 Rb2 27. Bxa3 Rxd2+ 28. Kg1 Rd3 29. e6 Rxa3 30. Rc7 Rg3+ 31. Kf2 Rf3+ 32. Ke1 Rxf6 33. e7 Re6 34. Rxa7 Re8 35. a4 R6xe7 36. Ra5 Bg2+ 37. Kd2 Re2+ 38. Kd3 R8e3+ 39. Kd4 Rxh3 40. Rb5 Rg3 41. a5 Rxg4+ 42. Kc5 d4 43. Rb3 Rc2+ 44. Kd6 Rg6+ 45. Ke5 Rc8 46. a6 Rg4 47. Kf5 h5 48. Ra5 Re8 49. Re5 Be4+ 50. Rxe4 Rgxe4 51. Rb5 g6+ 52. Kg5 R4e5+ 53. Kh6 Rxb5 54. a7 Kf8 0-1

[Event "17th Asian Continental-ch Women 2018"]
[Site "Makati City"]
[Date "2018.12.14"]
[Round "5.19"]
[White "Wang, Ying"]
[Black "San Diego, Jerlyn Mae"]
[Result "0-1"]
[ECO "A00"]
[WhiteElo "1324"]
[BlackElo "1932"]
[PlyCount "74"]
[EventDate "2018.12.07"]
[EventType "swiss"]
[EventCountry "PHI"]
[TimeControl "40/5400+30:1800+30"]

1. Nf3 g6 2. e4 c5 3. d4 cxd4 4. Qxd4 Nf6 5. e5 Nc6 6. Qa4 Nd5 7. c4 Nb6 8. Qd1 d6 9. exd6 Qxd6 10. Qxd6 exd6 11. a3 Bg7 12. Ra2 Be6 13. b3 Na5 14. Nfd2 Rc8 15. Bb2 Bxb2 16. Rxb2 d5 17. Nc3 dxc4 18. b4 Nb3 19. Nb5 c3 20. Nd6+ Ke7 21. Nxc8+ Rxc8 22. Bd3 cxb2 23. Nxb3 Rc1+ 24. Kd2 Rxh1 25. h3 Bxb3 26. Kc3 b1=Q 27. Bxb1 Rxb1 28. f4 Na4+ 29. Kd4 Re1 30. Kd3 Kd6 31. Kd2 Re4 32. Kd3 Kd5 33. g3 Bc4+ 34. Kd2 Re2+ 35. Kd1 Kd4 36. g4 Kd3 37. f5 Bb3+ 0-1

[Event "17th Asian Continental-ch Women 2018"]
[Site "Makati City"]
[Date "2018.12.15"]
[Round "6.4"]
[White "Vo, Thi Kim Phung"]
[Black "Pham, Le Thao Nguyen"]
[Result "1/2-1/2"]
[ECO "A00"]
[WhiteElo "2352"]
[BlackElo "2363"]
[PlyCount "79"]
[EventDate "2018.12.07"]
[EventType "swiss"]
[EventCountry "PHI"]
[TimeControl "40/5400+30:1800+30"]

1. d4 Nf6 2. c4 e6 3. Nc3 Bb4 4. Qc2 O-O 5. Nf3 d6 6. Bg5 Nbd7 7. e3 h6 8. Bh4 b6 9. Bd3 Bb7 10. O-O Bxc3 11. bxc3 Re8 12. e4 e5 13. Rfe1 Nf8 14. c5 Ng6 15. cxd6 cxd6 16. Bb5 Nxh4 17. Nxh4 Re7 18. Nf5 Rc7 19. Rad1 Qf8 20. Re3 Bc8 21. Ng3 a6 22. Ba4 b5 23. Bb3 Bd7 24. Qd2 a5 25. h3 a4 26. Bd5 Rac8 27. a3 Nxd5 28. exd5 exd4 29. Qxd4 Rc4 30. Qd2 f5 31. Ne2 f4 32. Rf3 g5 33. Rd3 Bf5 34. Rd4 f3 35. gxf3 Bxh3 36. Qe3 Re8 37. Re4 Rcxe4 38. fxe4 Bg4 39. Rd3 Qf6 40. Nd4 1/2-1/2

[Event "17th Asian Continental-ch Women 2018"]
[Site "Makati City"]
[Date "2018.12.15"]
[Round "6.5"]
[White "Wang, Jue"]
[Black "Li, Yunshan"]
[Result "1-0"]
[ECO "A00"]
[WhiteElo "2367"]
[BlackElo "2196"]
[PlyCount "63"]
[EventDate "2018.12.07"]
[EventType "swiss"]
[EventCountry "PHI"]
[TimeControl "40/5400+30:1800+30"]

1. e4 c6 2. d4 d5 3. e5 c5 4. dxc5 e6 5. a3 Bxc5 6. b4 Bb6 7. Qg4 Ne7 8. Nf3 Ng6 9. Bd3 f5 10. Qh5 Nc6 11. Bb2 Nce7 12. Qg5 O-O 13. h4 h6 14. Qg3 Bd7 15. Nbd2 Bc7 16. O-O Qb8 17. Rfe1 Nh8 18. c4 dxc4 19. Nxc4 g6 20. Nd6 Nf7 21. Bc4 b5 22. Bb3 a5 23. Rad1 Rd8 24. Bc1 axb4 25. axb4 Ra1 26. Nxf7 Kxf7 27. Bxh6 Rxd1 28. Rxd1 Ng8 29. Bg5 Ne7 30. Bxe7 Kxe7 31. Qg5+ Ke8 32. Qxg6+ 1-0

[Event "17th Asian Continental-ch Women 2018"]
[Site "Makati City"]
[Date "2018.12.15"]
[Round "6.6"]
[White "Nguyen, Thi Thanh An"]
[Black "Citra, Dewi Ardhiani Anast"]
[Result "1/2-1/2"]
[ECO "A00"]
[WhiteElo "2262"]
[BlackElo "2215"]
[PlyCount "51"]
[EventDate "2018.12.07"]
[EventType "swiss"]
[EventCountry "PHI"]
[TimeControl "40/5400+30:1800+30"]

1. d4 d5 2. c4 Nc6 3. Nf3 Bg4 4. cxd5 Bxf3 5. gxf3 Qxd5 6. e3 e5 7. Nc3 Bb4 8. Bd2 Bxc3 9. bxc3 Qd6 10. Qb3 O-O-O 11. Rb1 b6 12. Bg2 f5 13. f4 exf4 14. O-O f3 15. Bxf3 Nf6 16. Qb5 Ne7 17. Qa6+ Kd7 18. Qxa7 Ke6 19. Qa6 Kd7 20. Qa4+ Kc8 21. Qa7 h5 22. Qa6+ Kd7 23. Qa4+ Kc8 24. Qa6+ Kd7 25. Qa4+ Kc8 26. Qa6+ 1/2-1/2

[Event "17th Asian Continental-ch Women 2018"]
[Site "Makati City"]
[Date "2018.12.15"]
[Round "6.7"]
[White "Ning, Kaiyu"]
[Black "Li, Xueyi"]
[Result "0-1"]
[ECO "A00"]
[WhiteElo "2247"]
[BlackElo "2187"]
[PlyCount "68"]
[EventDate "2018.12.07"]
[EventType "swiss"]
[EventCountry "PHI"]
[TimeControl "40/5400+30:1800+30"]

1. d4 d5 2. c4 e6 3. Nf3 c6 4. e3 Nf6 5. b3 Nbd7 6. Bd3 Bd6 7. Bb2 Qe7 8. Nbd2 dxc4 9. Nxc4 Bb4+ 10. Ncd2 c5 11. O-O cxd4 12. Nxd4 Ne5 13. Be2 O-O 14. a3 Ba5 15. f4 Bxd2 16. Qxd2 Ng6 17. a4 Rd8 18. Rfd1 Bd7 19. Bf3 e5 20. fxe5 Nxe5 21. Bxb7 Rab8 22. Bf3 Nxf3+ 23. gxf3 Re8 24. Re1 Rb6 25. a5 Ne4 26. Qc2 Rg6+ 27. Kh1 Nf6 28. e4 Nh5 29. Rg1 Qh4 30. Rxg6 hxg6 31. Rg1 Rc8 32. Qd2 Bh3 33. Ne2 Qf2 34. Qd3 Rc2 0-1

[Event "17th Asian Continental-ch Women 2018"]
[Site "Makati City"]
[Date "2018.12.15"]
[Round "6.8"]
[White "Doroy Allaney Jia G"]
[Black "Gu, Tianlu"]
[Result "0-1"]
[ECO "A00"]
[WhiteElo "1972"]
[BlackElo "2231"]
[PlyCount "114"]
[EventDate "2018.12.07"]
[EventType "swiss"]
[EventCountry "PHI"]
[TimeControl "40/5400+30:1800+30"]

1. c4 e5 2. g3 g6 3. Bg2 Bg7 4. Nc3 Ne7 5. e3 c5 6. Nge2 Nbc6 7. O-O O-O 8. d3 d6 9. Rb1 Rb8 10. a3 a5 11. Bd2 Be6 12. Nd5 b5 13. b3 b4 14. axb4 Bxd5 15. cxd5 Nxb4 16. Bxb4 Rxb4 17. Nc3 Qb8 18. Qc2 Qb7 19. Ne4 Qb6 20. Nd2 Rb8 21. e4 f5 22. Ra1 Qc7 23. Ra3 fxe4 24. dxe4 c4 25. bxc4 Bh6 26. Qd3 Rb2 27. Nb1 Qc5 28. Rc3 a4 29. h4 Kg7 30. Bh3 R8b7 31. Be6 Rb8 32. Bd7 a3 33. Nxa3 Rd2 34. Qf3 Ng8 35. Rb3 Rf8 36. Qg2 Nf6 37. Be6 Nxe4 38. Rf3 Nf6 39. g4 Bf4 40. g5 Ne4 41. Kh1 Ra2 42. Nb1 Qxc4 43. Ra3 Rxa3 44. Nxa3 Qd3 45. Re1 Nd2 46. Qh3 Nf3 47. Ra1 e4 48. Qf1 Nxh4 49. Qxd3 exd3 50. Nc4 Nf3 51. Rd1 d2 52. Kg2 Nxg5 53. Bg4 Ne4 54. Ne3 Bxe3 55. fxe3 Rf2+ 56. Kg1 h5 57. Bh3 Re2 0-1

[Event "17th Asian Continental-ch Women 2018"]
[Site "Makati City"]
[Date "2018.12.15"]
[Round "6.9"]
[White "Secopito, Catherine"]
[Black "Nakhbayeva, Guliskhan"]
[Result "0-1"]
[ECO "A00"]
[WhiteElo "2145"]
[BlackElo "2371"]
[PlyCount "134"]
[EventDate "2018.12.07"]
[EventType "swiss"]
[EventCountry "PHI"]
[TimeControl "40/5400+30:1800+30"]

1. d4 Nf6 2. c4 e6 3. Nc3 Bb4 4. e3 O-O 5. a3 Bxc3+ 6. bxc3 c5 7. Nf3 d5 8. cxd5 exd5 9. dxc5 Nbd7 10. c4 Nxc5 11. cxd5 Bf5 12. Bb2 Nxd5 13. Bc4 Nb6 14. Qd4 Qxd4 15. Bxd4 Nxc4 16. Bxc5 Rfc8 17. Bd4 Nxa3 18. O-O Nb5 19. Ra5 a6 20. Bb6 Rc6 21. Nd4 Rxb6 22. Nxf5 Kf8 23. Rb1 Rc8 24. g4 Rbc6 25. Kg2 Rc1 26. Rb3 Rd1 27. h4 g6 28. Ng3 Nd6 29. h5 Rc2 30. Ra4 Rdd2 31. Rf4 b5 32. Ra3 Rc6 33. h6 Nc4 34. Rb3 g5 35. Rf5 Nd6 36. Rxg5 Rcc2 37. Nh1 Rc6 38. Ng3 Rcc2 39. Nh1 Ne4 40. Rf5 Rc3 41. Rb1 Rc6 42. Rb4 Nd6 43. Rg5 Nc4 44. Rb3 Rxh6 45. Rc5 Rg6 46. Kh3 Nd6 47. Ra3 Ne4 48. Rf5 Rd1 49. Ng3 Nxg3 50. Kxg3 b4 51. Rb3 Rb6 52. Ra5 Rc1 53. Ra4 Rc4 54. f3 Ke7 55. e4 Ke6 56. Kf4 Kd6 57. Ra5 Rc5 58. Ra1 a5 59. Rh1 Rcb5 60. Rxh7 a4 61. Rb1 f6 62. Rh5 b3 63. Rc1 Rxh5 64. gxh5 b2 65. Rg1 a3 66. h6 Rb8 67. h7 a2 0-1

[Event "17th Asian Continental-ch Women 2018"]
[Site "Makati City"]
[Date "2018.12.15"]
[Round "6.10"]
[White "Aulia, Medina Warda"]
[Black "Bach, Ngoc Thuy Duong"]
[Result "1-0"]
[ECO "A00"]
[WhiteElo "2366"]
[BlackElo "2131"]
[PlyCount "115"]
[EventDate "2018.12.07"]
[EventType "swiss"]
[EventCountry "PHI"]
[TimeControl "40/5400+30:1800+30"]

1. e4 c5 2. Nf3 d6 3. d4 cxd4 4. Nxd4 Nf6 5. Nc3 a6 6. Be2 e5 7. Nb3 Be7 8. O-O O-O 9. a4 Be6 10. Bf3 Nbd7 11. Re1 Rc8 12. Nd2 Bc4 13. a5 b5 14. axb6 Bb5 15. b7 Rb8 16. Nf1 Bxf1 17. Rxf1 a5 18. Nd5 Rxb7 19. Nxe7+ Qxe7 20. Rxa5 Nc5 21. Re1 Qc7 22. Ra3 h6 23. c3 Qc6 24. Qc2 Rc8 25. b4 Ncd7 26. Qd3 Nb6 27. h3 Nc4 28. Ra2 Nb6 29. Bd2 Nc4 30. Be3 Rbc7 31. Bc1 Rb7 32. Bg4 Nxg4 33. hxg4 Nb6 34. g5 Qxc3 35. Qxc3 Rxc3 36. gxh6 gxh6 37. Bxh6 Rb3 38. Bd2 Nc4 39. Rc2 Nxd2 40. Rxd2 Rb6 41. Red1 R6xb4 42. f3 Rc4 43. Rxd6 Rc2 44. R1d2 Rc1+ 45. Kh2 Kg7 46. Kg3 Rb8 47. R6d5 Re8 48. Rd6 Rh1 49. Ra6 Re7 50. Kg4 Rh2 51. Kg3 Rh5 52. Kg4 Rh2 53. Rad6 Rh1 54. g3 Rg1 55. Rh2 Re8 56. Rh5 f6 57. Rd7+ Kg6 58. Rdh7 1-0

[Event "17th Asian Continental-ch Women 2018"]
[Site "Makati City"]
[Date "2018.12.15"]
[Round "6.11"]
[White "Makhija, Aashna"]
[Black "Fronda, Jan Jodilyn"]
[Result "0-1"]
[ECO "A00"]
[WhiteElo "2181"]
[BlackElo "2139"]
[PlyCount "128"]
[EventDate "2018.12.07"]
[EventType "swiss"]
[EventCountry "PHI"]
[TimeControl "40/5400+30:1800+30"]

1. e4 d5 2. exd5 Qxd5 3. Nc3 Qa5 4. Bc4 Nf6 5. d3 Bg4 6. f3 Bd7 7. Bd2 Qe5+ 8. Nge2 e6 9. d4 Qd6 10. O-O Be7 11. Bf4 Qb6 12. Qd2 Nc6 13. Be3 Nb4 14. Bf2 Nbd5 15. Ne4 O-O 16. Bb3 Nxe4 17. fxe4 Nf6 18. Qf4 c5 19. c3 a5 20. e5 Nd5 21. Qg4 Rad8 22. Ng3 a4 23. Nh5 g6 24. Bxd5 exd5 25. Qg3 Kh8 26. dxc5 Qxb2 27. Rab1 Qe2 28. Nf6 Bxf6 29. exf6 Bc6 30. Qh4 d4 31. cxd4 g5 32. Qg3 Qxa2 33. Ra1 Qd5 34. Rae1 Rde8 35. Be3 Rg8 36. Qh3 a3 37. Rf5 Qe6 38. Bf2 a2 39. Rfe5 Qxf6 40. Qa3 Ra8 41. Qb2 Rge8 42. Bg3 Qg7 43. Qxa2 f6 44. Rxe8+ Rxe8 45. Rxe8+ Bxe8 46. Qe6 Qf7 47. Qd6 Bc6 48. h3 Kg7 49. Bf2 h5 50. Qg3 Qd5 51. h4 Kg6 52. Be3 Qe4 53. hxg5 h4 54. Qf2 fxg5 55. Kf1 Qb1+ 56. Ke2 Qc2+ 57. Ke1 Qb1+ 58. Kd2 Qe4 59. Kc3 Qxg2 60. Qf8 Qd5 61. Qc8 Bd7 62. Qc7 h3 63. Qg3 Be6 64. Kd2 h2 0-1

[Event "17th Asian Continental-ch Women 2018"]
[Site "Makati City"]
[Date "2018.12.15"]
[Round "6.12"]
[White "Alinasab, Mobina"]
[Black "Nandhidhaa, P V"]
[Result "1/2-1/2"]
[ECO "A00"]
[WhiteElo "2295"]
[BlackElo "2267"]
[PlyCount "307"]
[EventDate "2018.12.07"]
[EventType "swiss"]
[EventCountry "PHI"]
[TimeControl "40/5400+30:1800+30"]

1. e4 c5 2. Nf3 e6 3. d4 cxd4 4. Nxd4 Nc6 5. Nc3 Qc7 6. g3 a6 7. Bg2 Nf6 8. O-O h5 9. h3 Bc5 10. Nxc6 dxc6 11. e5 Qxe5 12. Bf4 Qd4 13. Qe2 Be7 14. Rfd1 Qa7 15. Na4 Bd7 16. Be5 c5 17. Nc3 Rc8 18. Ne4 Nxe4 19. Bxe4 Bf6 20. Bxf6 gxf6 21. Qf3 f5 22. Bxb7 Rc7 23. Rxd7 Kxd7 24. Rd1+ Ke8 25. Qc3 Rg8 26. Qf6 Qb8 27. Bxa6 Rc6 28. Be2 Rd6 29. Re1 Rd2 30. Qc3 Qb4 31. Qxb4 cxb4 32. Bxh5 Rh8 33. g4 Ke7 34. c3 bxc3 35. bxc3 Rxa2 36. c4 Ra7 37. Kg2 Rc7 38. Ra1 fxg4 39. hxg4 Rhc8 40. Kg3 Rxc4 41. g5 e5 42. Ra7+ R8c7 43. Ra5 R4c5 44. Rxc5 Rxc5 45. f3 Rc1 46. Kg2 f6 47. gxf6+ Kxf6 48. Kg3 Rc5 49. Kg4 Rc4+ 50. Kg3 Kg5 51. Bf7 Rd4 52. Bg8 Rd1 53. Be6 Rg1+ 54. Kf2 Rc1 55. Ke3 Rd1 56. Bg8 Re1+ 57. Kf2 Ra1 58. Ke3 Ra3+ 59. Ke4 Kf6 60. Bd5 Ra7 61. Bg8 Ra8 62. Bd5 Rb8 63. Ke3 Rb4 64. Kf2 Rb5 65. Be4 Rb4 66. Bd5 Ra4 67. Be4 Kg5 68. Kg3 Ra1 69. Bh7 Ra2 70. Be4 Rd2 71. Bh7 Rd4 72. Be4 Rb4 73. Bd3 Rf4 74. Be4 Kf6 75. Kf2 Ke6 76. Ke3 Kd6 77. Bb1 Kc5 78. Ba2 Kb4 79. Bb1 Kc3 80. Be4 Rh4 81. Bf5 Rd4 82. Bg6 Kb2 83. Be4 Rd1 84. Bf5 Kc3 85. Ke4 Rd3 86. Bg4 Kd2 87. Kxe5 Ke3 88. Kf5 Rd5+ 89. Ke6 Ra5 90. Kf6 Kf4 91. Kg7 Kg5 92. Be6 Ra7+ 93. Bf7 Kf5 94. Kg8 Kf6 95. Bd5 Rg7+ 96. Kh8 Rg5 97. Bc4 Rc5 98. Ba2 Rc2 99. Bd5 Rd2 100. Bg8 Rh2+ 101. Bh7 Kf7 102. f4 Rb2 103. Bg8+ Kf8 104. f5 Rh2+ 105. Bh7 Kf7 106. f6 Kxf6 107. Kg8 Rg2+ 108. Kh8 Kf7 109. Bd3 Rh2+ 110. Bh7 Rd2 111. Bg8+ Kf6 112. Bh7 Rd8+ 113. Bg8 Rd7 114. Bb3 Rc7 115. Ba2 Kg6 116. Bb1+ Kh6 117. Ba2 Ra7 118. Bb3 Rh7+ 119. Kg8 Rb7 120. Bc4 Rc7 121. Ba2 Kg6 122. Bb1+ Kf6 123. Kh8 Rc8+ 124. Kh7 Rc1 125. Be4 Re1 126. Bd3 Re3 127. Bb1 Rh3+ 128. Kg8 Rb3 129. Be4 Rb5 130. Bd3 Rc5 131. Bb1 Ra5 132. Bc2 Ra3 133. Kh7 Ra5 134. Kh8 Rg5 135. Bb1 Rb5 136. Bd3 Rb4 137. Bh7 Rh4 138. Kg8 Rg4+ 139. Kh8 Kf7 140. Bc2 Rg8+ 141. Kh7 Rg3 142. Kh8 Rh3+ 143. Bh7 Rc3 144. Bg8+ Kf8 145. Bh7 Rc8 146. Bg6 Rc6 147. Bh7 Rc7 148. Bg6 Rg7 149. Bd3 Rg8+ 150. Kh7 Rg4 151. Bf5 Rc4 152. Bb1 Rb4 153. Ba2 Rb7+ 154. Kg6 1/2-1/2

[Event "17th Asian Continental-ch Women 2018"]
[Site "Makati City"]
[Date "2018.12.15"]
[Round "6.13"]
[White "Frayna, Janelle Mae"]
[Black "Anisa, Aay Aisyah"]
[Result "1-0"]
[ECO "A00"]
[WhiteElo "2228"]
[BlackElo "1985"]
[PlyCount "91"]
[EventDate "2018.12.07"]
[EventType "swiss"]
[EventCountry "PHI"]
[TimeControl "40/5400+30:1800+30"]

1. Nf3 Nf6 2. c4 c5 3. g3 Nc6 4. Bg2 g6 5. O-O Bg7 6. Nc3 O-O 7. d4 cxd4 8. Nxd4 Qb6 9. Nc2 d6 10. h3 Be6 11. b3 Rfd8 12. e4 Nh5 13. Na4 Qa6 14. Nb2 b5 15. g4 Nf6 16. cxb5 Qxb5 17. Qd3 Rab8 18. f4 Rdc8 19. Qxb5 Rxb5 20. Nd3 Ne8 21. Bb2 Bxb2 22. Nxb2 f5 23. exf5 Rc5 24. Rf2 Bf7 25. b4 Rc3 26. Nd1 Rc4 27. Nce3 Nxb4 28. Nxc4 Rxc4 29. fxg6 hxg6 30. Ne3 Rd4 31. a3 Na6 32. f5 g5 33. Re1 Kf8 34. Nc2 Rc4 35. Bf1 Ra4 36. Bb5 Ra5 37. a4 Nac7 38. Nd4 Bd5 39. Ne6+ Kf7 40. Nxg5+ Kf6 41. Nh7+ Kf7 42. Rfe2 e5 43. fxe6+ Ke7 44. Bxe8 Nxe8 45. Rf2 Bxe6 46. Nf8 1-0

[Event "17th Asian Continental-ch Women 2018"]
[Site "Makati City"]
[Date "2018.12.15"]
[Round "6.14"]
[White "Mendoza, Shania Mae"]
[Black "Nithyalakshmi, Sivanesan"]
[Result "1-0"]
[ECO "A00"]
[WhiteElo "2165"]
[BlackElo "1942"]
[PlyCount "91"]
[EventDate "2018.12.07"]
[EventType "swiss"]
[EventCountry "PHI"]
[TimeControl "40/5400+30:1800+30"]

1. Nf3 d6 2. e4 g6 3. d4 Bg7 4. Bc4 Nf6 5. Qe2 O-O 6. e5 dxe5 7. dxe5 Nd5 8. h3 c6 9. O-O h6 10. Bd3 e6 11. c4 Ne7 12. Nc3 Nd7 13. Bf4 a5 14. Rad1 Qc7 15. Rfe1 Nc5 16. Bc2 b6 17. Qe3 Kh7 18. g4 Ba6 19. b3 Rad8 20. h4 Rxd1 21. Rxd1 Rd8 22. Rd6 Rg8 23. h5 Bf8 24. Rd1 Bb7 25. Kh2 Ba6 26. a3 Bg7 27. Rh1 Rh8 28. Kg2 Kg8 29. hxg6 Nxg6 30. Bxh6 Nd7 31. Bxg6 fxg6 32. Bxg7 Rxh1 33. Kxh1 Kxg7 34. Qg5 Nf8 35. Qf6+ Kg8 36. Ng5 Qd7 37. Kh2 Bc8 38. Nce4 Qg7 39. Qf4 Nd7 40. Kg1 Qe7 41. Nd6 Ba6 42. b4 axb4 43. axb4 Qg7 44. b5 cxb5 45. cxb5 Bxb5 46. Nxb5 1-0